Cogmind - Beta 12 *** ADVENTURER MODE // 2024.01.31 @ 08:44:32 Player: art-hropod Result: Destroyed by G-34 Mercenary with Small Laser Performance ------------- Evolutions (1) 500 Regions Visited (2) 400 Robots Destroyed (17) 85 Value Destroyed (462) 462 Prototype IDs (0) 0 Alien Tech Used (0) 0 Bonus (0) 0 TOTAL SCORE: 1447 Bonus ------- None Cogmind --------- Core Integrity 0/400 Matter 212/300 Energy 100/100 System Corruption 0% Temperature Cool (15) Movement Walking (190) Ox1 Location -9/Materials Parts ------- > --- POWER (1) -------- (None) > --- PROPULSION (4) --- Aluminum Leg > --- UTILITY (2) ------ Medium Storage Unit > --- WEAPON (2) ------- Assault Rifle Light Assault Rifle > --- INVENTORY (10) --- Small Storage Unit Weight Redist. System Peak State ------------ > --- POWER ------------ Ion Engine > --- PROPULSION ------- Light Treads Aluminum Leg Aluminum Leg Aluminum Leg > --- UTILITY ---------- Heat Sink Medium Storage Unit > --- WEAPON ----------- Heavy EM Pulse Gun Light Assault Rifle > --- INVENTORY -------- Light Ion Engine Light Ion Engine Light Treads Small Storage Unit Weight Redist. System Small Laser Small Laser Light Assault Rifle Grenade Launcher [Rating: 11] Favorites ----------- Power Ion Engine Engine Ion Engine Propulsion Aluminum Leg Treads Light Treads Leg Aluminum Leg Utility Medium Storage Unit Device Heat Sink Storage Medium Storage Unit Processor Visual Processing Unit Weapon Light Assault Rifle Energy Gun Small Laser Ballistic Gun Light Assault Rifle Launcher Grenade Launcher Build | -11 -10 -9 ------- Run | Jun Mat Mat Slots Evolved 2 | . . 2 Power . | . . . Propulsion 2 | . . 2 Utility . | . . . Weapon . | . . . Parts Attached 24 | 6 6 12 Power 4 | 1 1 2 Engine 4 | 1 1 2 Core . | . . . Reactor . | . . . Propulsion 7 | 2 1 4 Treads 2 | . . 2 Leg 5 | 2 1 2 Wheel . | . . . Hover . | . . . Flight . | . . . Utility 4 | 1 3 . Device 1 | . 1 . Storage 2 | 1 1 . Processor 1 | . 1 . Hackware . | . . . Protection . | . . . Artifact . | . . . Weapon 9 | 2 1 6 Energy Gun 4 | . 1 3 Energy Cannon . | . . . Ballistic Gun 4 | 2 . 2 Ballistic Cannon . | . . . Launcher 1 | . . 1 Special Weapon . | . . . Impact Weapon . | . . . Slashing Weapon . | . . . Piercing Weapon . | . . . Special Melee Weapon . | . . . Unidentified Prototypes . | . . . Parts Lost 14 | . . 14 Power 3 | . . 3 Propulsion 5 | . . 5 Utility 1 | . . 1 Weapon 5 | . . 5 Highest Loss Streak 14 | . . 14 To Critical Strikes . | . . . Average Slot Usage (%) 89 | . 93 85 Engine 11 | . 14 8 Treads 3 | . . 8 Leg 27 | . 28 26 Device 8 | . 6 9 Storage 12 | . 14 11 Energy Gun 7 | . 5 9 Ballistic Gun 17 | . 22 10 Naked Turns . | . . . Heaviest Build 20 | 11 19 20 Greatest Support 30 | 20 20 30 Greatest Overweight (x) 3 | . . 3 Average Overweight (x) . | . . . Largest Inventory Capacity 10 | 8 10 10 Average Capacity 9 | 7 9 10 Most Carried 10 | 6 10 10 Average Carried 8 | 3 9 7 Final Capacity 10 | 8 10 10 Final Carried 10 | 6 10 2 Class Distribution -------------------- 100% | Mutant Dominant Class ---------------- Mutant | -10/Materials Mutant | -9/Materials Resources | -11 -10 -9 ----------- Run | Jun Mat Mat Matter Collected 479 | 253 183 43 Remotely . | . . . Salvage Created 707 | . 313 394 Parts 41 | . 16 25 Haulers Intercepted 2 | . 2 . Recyclers Shooed . | . . . Parts Field Recycled . | . . . Retrieved Matter . | . . . Parts Self-Destructed . | . . . Prevented . | . . . Kills | -11 -10 -9 ------- Run | Jun Mat Mat Combat Hostiles Destroyed 11 | . 3 8 Guns 8 | . 3 5 AOE 3 | . . 3 Classes Destroyed 5 | . 3 2 Worker 1 | . . 1 Builder 1 | . . 1 Hauler 2 | . 2 . Watcher 2 | . 2 . Grunt 11 | . 3 8 Best Kill Streak 6 | . 3 6 Combat Bots Only 6 | . 2 6 Max Kills in Single Turn 2 | . 2 2 Gunslinging 1 | . 1 . Exploded 2 | . . 2 Melee . | . . . Uniques/NPCs Destroyed . | . . . Combat | -11 -10 -9 -------- Run | Jun Mat Mat Damage Taken 1893 | . 302 1591 Core 483 | . 77 406 Absorbed by Shields . | . . . Core Remaining (%) 84 | 100 69 . Volleys Fired 69 | 1 29 39 Largest 2 | 2 2 2 Hottest 80 | 40 60 80 Shots Fired 125 | 2 59 64 Gun 122 | 2 59 61 Cannon . | . . . Launcher 3 | . . 3 Special . | . . . Kinetic 93 | 2 57 34 Thermal 14 | . 2 12 Explosive 3 | . . 3 Electromagnetic 15 | . . 15 Robot Hit Streak 18 | 2 14 18 Robot Miss Streak 3 | . 3 3 Penetration Max . | . . . Secondary Targets 4 | . 1 3 Max Gunslinging Chain 1 | . 1 1 Shots Hit Robots 99 | 2 45 52 Core Hits 46 | . 16 30 Critical Kills . | . . . Critical Parts Destroyed . | . . . Critical Strikes 2 | . . 2 Corrupt 2 | . . 2 Melee Attacks . | . . . Impact . | . . . Slashing . | . . . Piercing . | . . . Sneak Attacks . | . . . Combat Hostiles . | . . . Follow-up Attacks . | . . . Damage Inflicted 1176 | 20 467 689 Guns 1027 | 20 467 540 Cannons . | . . . Explosions 149 | . . 149 Melee . | . . . Ramming . | . . . Kinetic 707 | 20 455 232 Thermal 143 | . 12 131 Explosive 149 | . . 149 Electromagnetic 177 | . . 177 Impact . | . . . Slashing . | . . . Piercing . | . . . Highest Corruption 1 | . 1 . Average Corruption 1 | . 1 . Corruption Purged . | . . . Corruption Blocked . | . . . Effects 1 | . 1 . Misfires 1 | . 1 . Overload Shots . | . . . Overflow Damage . | . . . Projectiles . | . . . Explosions . | . . . Melee . | . . . Knockbacks . | . . . Impact . | . . . Kinetic . | . . . Secondary . | . . . Self-Inflicted Damage 14 | . . 14 Shots 1 | . . 1 Rammed . | . . . Targets Rammed . | . . . Kicked . | . . . Crushed . | . . . Highest Temperature 128 | . 39 128 Average Temperature 48 | . 19 61 Received Heat Transfer 1308 | . 186 1122 Siege Activations . | . . . Robots Corrupted . | . . . Combat Hostiles . | . . . Parts Fried 1 | . . 1 Impact Corruptions . | . . . Robots Melted . | . . . Combat Hostiles . | . . . Parts Melted 1 | . . 1 Heat Transferred 325 | . 25 300 Parts Sabotaged . | . . . Parts Stolen . | . . . Parts Stripped . | . . . Power Chain Reactions . | . . . Missiles Intercepted . | . . . Alert | -11 -10 -9 ------- Run | Jun Mat Mat Peak Influence 164 | . 164 103 Initial . | . . . Average 53 | . 86 23 Maximum Alert Level . | . . . Low Security (%) 100 | 100 100 100 Level 1 . | . . . Level 2 . | . . . Level 3 . | . . . Level 4 . | . . . Level 5 . | . . . High Security . | . . . Max Security . | . . . Squads Dispatched 2 | . 2 . Investigation 2 | . 2 . Extermination . | . . . Reinforcement . | . . . Assault . | . . . Garrison . | . . . Intercept . | . . . Searches Triggered . | . . . Construction Impeded . | . . . Haulers Reinforced . | . . . Active Scanning Responses . | . . . Cargo Convoy Interrupts . | . . . Stealth | -11 -10 -9 --------- Run | Jun Mat Mat Distress Signals 1 | . 1 . Communications Jammed . | . . . Distress Signals . | . . . Times Spotted 27 | . 11 16 Peak Tracking Total 12 | . 3 12 Tactical Retreats 1 | . . 1 Traps | -11 -10 -9 ------- Run | Jun Mat Mat Traps Triggered 3 | . 3 . Indirectly . | . . . Trap Hack Attempts . | . . . Triggered . | . . . Disarmed . | . . . Reprogrammed . | . . . Reused . | . . . Traps Extracted . | . . . Installed . | . . . Triggered . | . . . Machines | -11 -10 -9 ---------- Run | Jun Mat Mat Machines Disabled 2 | . . 2 Max in Single Turn 1 | . . 1 Machines Repaired . | . . . Machines Sabotaged . | . . . Overloaded Fab Kills . | . . . Hacking | -11 -10 -9 --------- Run | Jun Mat Mat Machines Accessed 8 | . 5 3 Terminals 8 | . 5 3 Fabricators . | . . . Repair Stations . | . . . Recycling Units . | . . . Scanalyzers . | . . . Garrison Access . | . . . Total Hacks 20 | . 11 9 Successful 11 | . 7 4 Failed 9 | . 4 5 Catastrophic 2 | . 2 . Database Lockouts . | . . . Manual 21 | . 12 9 Terminals 20 | . 11 9 Fabricators . | . . . Repair Stations . | . . . Recycling Units . | . . . Scanalyzers . | . . . Garrison Access . | . . . Terminal Hacks 3 | . 2 1 Unreport Threat 1 | . . 1 Transport Status 1 | . 1 . Recall Investigation 1 | . 1 . Fabricator Hacks . | . . . Repair Station Hacks . | . . . Recycling Unit Hacks . | . . . Scanalyzer . | . . . Garrison Access Hacks . | . . . Unauthorized Hacks 8 | . 5 3 Terminals 8 | . 5 3 Botnet 6 | . 4 2 Operators 2 | . 1 1 Fabricators . | . . . Repair Stations . | . . . Recycling Units . | . . . Scanalyzers . | . . . Garrison Access . | . . . Data Cores Recovered . | . . . Used . | . . . Hacking Detections 8 | . 5 3 Full Trace Events 2 | . 2 . Feedback Events . | . . . Feedback Blocked . | . . . Robot Schematics Acquired . | . . . Robots Built . | . . . Authchips . | . . . Time . | . . . Total Robot Build Rating . | . . . Part Schematics Acquired . | . . . Parts Built . | . . . Authchips . | . . . Time . | . . . Total Part Build Rating . | . . . Parts Repaired . | . . . Time . | . . . Parts Recycled . | . . . Recycled Matter . | . . . Retrieved Matter . | . . . Retrieved Components . | . . . Parts Scanalyzed . | . . . Part Schematics Acquired . | . . . Parts Damaged . | . . . Bothacking | -11 -10 -9 ------------ Run | Jun Mat Mat Used RIF Installer . | . . . Robots Hacked . | . . . Non-combat . | . . . Combat . | . . . Robot Hacks Applied . | . . . Relay Couplers Released . | . . . Fabnet Peak Effective % . | . . . Robots Rewired . | . . . Allies Hacked . | . . . Hacks Repelled . | . . . Allies | -11 -10 -9 -------- Run | Jun Mat Mat Total Allies . | . . . Largest Group . | . . . Highest-Rated Group . | . . . Highest-Rated Ally . | . . . Total Orders . | . . . Ally Attacks . | . . . Total Damage . | . . . Kills . | . . . Allies Corrupted . | . . . Allies Melted . | . . . Intel | -11 -10 -9 ------- Run | Jun Mat Mat Robot Analysis Total . | . . . Derelict Logs Recovered . | . . . Drone Launches . | . . . Drone Recoveries . | . . . Exploration | -11 -10 -9 ------------- Run | Jun Mat Mat Turns Passed 812 | 70 413 329 Spaces Moved 479 | 45 260 174 Core 4 | 3 . 1 Treads . | . . . Legs 475 | 42 260 173 Wheels . | . . . Hover . | . . . Flight . | . . . Fastest Speed 50 | 50 120 120 Average Speed 120 | 115 120 122 Slowest Speed 200 | 120 120 200 Overloaded Moves . | . . . Propulsion Burnouts . | . . . Robots Hopped . | . . . Cave-ins Triggered . | . . . Exploration Rate (%) 25 | 4 50 23 Regions Visited 2 Branch Regions . Pre-discovered Areas . | . . . Known Exits Taken . | . . . Unknown Exits Taken 2 | 1 1 . Scrap Searched . | . . . Spaces Dug . | . . . Terrain Destroyed 21 | . . 21 Melee . | . . . Projectile . | . . . AOE 21 | . . 21 Terrain Rammed . | . . . Walls Destroyed . | . . . Machines Disabled . | . . . Actions | -11 -10 -9 --------- Run | Jun Mat Mat Total 601 | 60 308 233 Wait 8 | . 3 5 Move 477 | 44 259 174 Hop . | . . . Pick Up 18 | 9 6 3 Fast Attach 6 | 3 3 . Attach 14 | 3 . 11 Detach 1 | . 1 . Swap 4 | . 3 1 Drop 4 | . 4 . Fire 69 | 1 29 39 Melee . | . . . Ram . | . . . Kick . | . . . Crush . | . . . Escape Stasis . | . . . Rewire . | . . . Trap . | . . . Miscellaneous . | . . . Route ------- -11/Junkyard -10/Materials (discovered 2 exits: *Mat / [*Min]) -9/Materials History --------- Turn | Location | Event 28 | -11/Junkyard | Discovered new exit (range 15) 71 | -11/Junkyard | Entered Materials 302 | -10/Materials | Build established: Mutant 304 | -10/Materials | Discovered new exit (range 16) 470 | -10/Materials | Discovered new exit (range 12) 484 | -10/Materials | Entered another Materials area 484 | -9/Materials | Evolved 2 slots: Propulsion x2 756 | -9/Materials | Core integrity fell below 50% 780 | -9/Materials | Core integrity fell below 20% 813 | -9/Materials | Destroyed by G-34 Mercenary with Small Laser Last Messages --------------- 00772_ Heat Sink destroyed. 00775_ Sml. Laser destroyed. 00777_ G-34 Mercenary destroyed. 00777_ Terminal disabled. 00777_ G-47 Trooper destroyed. 00778_ Lgt. Ion Engine destroyed. 00783_ G-34 Mercenary destroyed. 00791_ Grenade Launcher destroyed. 00793_ Acquired Aluminum Leg. 00799_ U-05 Engineer builds a Door. 00804_ U-05 Engineer lays Concrete. 00805_ U-05 Engineer builds a Wall. 00805_ K-01 Serf collects debris. 00806_ U-05 Engineer lays Concrete. 00806_ Acquired Assault Rifle. 00807_ U-05 Engineer builds a Wall. 00807_ Critical hit (Burn: +37). 00810_ U-05 Engineer lays Concrete. 00811_ U-05 Engineer builds a Wall. 00812_ U-05 Engineer lays Concrete. Map ----- +----------------------------------------------------+ | #???????????????????????????????????????? | | +### #???????????????????????????????????????? | | ###+#######???????????????????????????????????? | | # ! #???????????????????????????????????? | | # #???????????????????????????????????? | | # #???????????????????????????????????? | | # #???????????????????????????????????? | | # #???????????????????????????????????? | | # #???????????????????????????????????? | | # #????????????#+?????????????????????? | | # #???????????? ?????????????????????? | | ##############???????????? ?????????????????????? | | ?????????????????????????? ?????????????????????? | | ?????????????????????????? #?????????????????????? | | ?????????????????????????? #?????????????????????? | | ????????????????????????## #?????????????????????? | | ????????????????????????##u#?????????????????????? | | ????????????????##########g###???????????????????? | | ##??????????????#|!!==% =[% #???????????????????? | | #??????????###?# #####+# = #???????????????????? | | ############T###!### u=![k #???????????????????? | | %*## " =[[ #???????????????????? | | ################*## %=% #????????????????????? | | #??????????????# ## %g[=%![#????????????????????? | | ##??????????????# ## *=%%/[#?????????????????????? | | #???????????????# ###=%**@%#?????????????????????? | | #???????????????# #?## # #?????????????????????? | | #???????????????# #??#######?????????????????????? | | #???????????????# #??????????????????????????????? | | #???????????????? ???????????????????????????????? | | #???????????????? ???????????????????????????????? | | +???????????????? ???????????????????????????????? | | #???????????????? ???????????????????????????????? | | #???????????????? ???????????????????????????????? | | ???????????????? ???????????????????????????????? | | ???????????????? ???????????????????????????????? | | "????????????????????????????????????????????????? | | "????????????????????????????????????????????????? | | ??????????????????????????????o??????????????????? | | ?????????????????????????????????????????????????? | | ?????????????????????????????????????????????????? | | ?????????????????????????????????????????????????? | | ?????????????????????????????????????????????????? | | ?????????????????????????????????????????????????? | | ?????????????????????????????????????????????????? | | ?????????????????????????????????????????????????? | | ?????????????????????????????????????????????????? | | ?????????????????????????????????????????????????? | | ?????????????????????????????????????????????????? | | ?????????????????????????????????????????????????? | +----------------------------------------------------+ Best States ------------- Heat Dissipation 38 Energy Generation 10 Energy Capacity 250 Matter Stores 300 Matter Capacity 300 Sight Range 18 Terrain Scan Density 10 Resistance: KI 20 Resistance: TH 20 Resistance: EX 20 Resistance: EM 20 Resistance: I 20 Resistance: S 20 Resistance: P 20 Evasion (%) 55 Recoil Reduction 2 Offensive Hacking 10 Item Schematics ----------------- None Robot Schematics ------------------ None Fabricated ------------ Nothing Alien Tech Used ----------------- None Achievements -------------- None Challenges ------------ None Game ------ Seed MicrowarpThrusterSpecial Manual? 0 Play Time 00:18:17 Cumulative 66.0 hours Start 2024.01.31 @ 08:15:10 End 2024.01.31 @ 08:44:32 Sessions 1 Manual Loads 0 Difficulty Adventurer Special Mode None Game No. 89 Rogue 70 Adventurer 12 Explorer 7 Win Type - Total 4 Types 4/0/0/0/0/0/0/0/0 Lore% 19 Gallery% 42 Achievement% 32 Wizard Run 0 Options --------- ASCII 0 Keyboard 0 Movement Mouse Keybinds 0 Fullscreen 1 Font 32/Terminus Map View 63x52 Tactical HUD 1 Map Filters NONE Filters NONE Steam 1 RUN: e777a2bd-cd87-438a-abd1-15bd85773f92